bitfinex/quotes_BTCUSD_20240718
["timestamp","ask_amount","ask_price","bid_price","bid_amount"]
[1721310330110,2.78057187,64694.0,64693.0,0.29867411]
[1721310330339,2.76657187,64694.0,64693.0,0.29867411]
[1721310330571,2.88084652,64694.0,64693.0,0.29867411]
[1721310330790,2.6662279,64694.0,64693.0,0.29867411]
[1721310331217,2.66621737,64694.0,64693.0,0.29867411]
[1721310332092,2.66621737,64694.0,64693.0,0.17929257]
[1721310332339,2.63821737,64694.0,64693.0,0.17929257]
[1721310332550,2.75244819,64694.0,64693.0,0.17929257]
[1721310333264,0.960087,64684.0,64682.0,0.009185]
[1721310333469,2.61009488,64684.0,64682.0,0.009185]
[1721310333705,2.8050873,64684.0,64682.0,0.009185]
[1721310333920,3.53767988,64684.0,64682.0,0.009185]
[1721310334143,3.4252318,64684.0,64682.0,0.009185]
[1721310334358,3.67090273,64684.0,64682.0,0.009185]
[1721310334589,3.28885925,64684.0,64682.0,0.009185]
[1721310334810,2.648967,64684.0,64682.0,0.009185]
[1721310335023,3.0660368,64684.0,64682.0,0.009185]
[1721310335252,3.4392318,64684.0,64682.0,0.009185]
[1721310335466,3.47088295,64684.0,64682.0,0.009185]
[1721310335679,3.60758137,64684.0,64682.0,0.009185]
[1721310335888,3.65293305,64684.0,64682.0,0.009185]
[1721310336142,3.63920671,64684.0,64682.0,0.009185]
[1721310336368,3.60758137,64684.0,64682.0,0.009185]
[1721310337051,3.63920671,64684.0,64682.0,0.009185]
[1721310337294,3.5795254,64684.0,64682.0,0.009185]
[1721310337504,3.5924945,64684.0,64682.0,0.009185]
[1721310337717,3.59273288,64684.0,64682.0,0.009185]
[1721310337937,2.66460335,64684.0,64682.0,0.009185]
[1721310338167,2.56598083,64684.0,64682.0,0.009185]
[1721310338390,2.55010324,64684.0,64682.0,0.009185]
[1721310338606,2.60010324,64684.0,64682.0,0.009185]
[1721310338823,2.6243008,64684.0,64682.0,0.009185]
[1721310339042,2.77865037,64684.0,64682.0,0.009185]
[1721310339293,3.07384537,64684.0,64682.0,0.009185]
[1721310339535,3.10164607,64684.0,64682.0,0.009185]
[1721310339736,2.77845107,64684.0,64682.0,0.009185]
[1721310340478,3.05984537,64684.0,64682.0,0.009185]
[1721310340703,3.08773692,64684.0,64682.0,0.009185]
[1721310340929,2.77854192,64684.0,64682.0,0.009185]
[1721310341155,3.08773692,64684.0,64682.0,0.009185]
[1721310342256,3.10173692,64684.0,64682.0,0.009185]
[1721310342686,3.08773692,64684.0,64682.0,0.009185]
[1721310343553,3.07384537,64684.0,64682.0,0.009185]
[1721310343801,2.79267137,64684.0,64682.0,0.009185]
[1721310344019,3.32808641,64684.0,64682.0,0.009185]
[1721310344285,3.29267137,64684.0,64682.0,0.009185]
[1721310344516,2.74267137,64684.0,64682.0,0.009185]
[1721310344728,3.41927137,64684.0,64682.0,0.009185]
[1721310345150,3.46927137,64684.0,64682.0,0.009185]
[1721310345574,3.45527137,64684.0,64682.0,0.009185]
[1721310345797,3.76446637,64684.0,64682.0,0.009185]
[1721310346003,3.77846637,64684.0,64682.0,0.009185]
[1721310346212,3.76446637,64684.0,64682.0,0.009185]
[1721310346425,3.75046637,64684.0,64682.0,0.009185]
[1721310346667,3.73644537,64684.0,64682.0,0.009185]
[1721310346914,3.76429903,64684.0,64682.0,0.009185]
[1721310347157,3.29625248,64684.0,64682.0,0.009185]
[1721310347365,2.61272907,64684.0,64682.0,0.009185]
[1721310347862,2.67672907,64684.0,64682.0,0.009185]
[1721310348074,2.98592407,64684.0,64682.0,0.009185]
[1721310348511,3.06782407,64684.0,64682.0,0.009185]
[1721310348723,3.22217364,64684.0,64682.0,0.009185]
[1721310348960,3.23117364,64684.0,64682.0,0.009185]
[1721310349417,3.20317364,64684.0,64682.0,0.009185]
[1721310349644,3.07682407,64684.0,64682.0,0.009185]
[1721310349860,2.63606641,64684.0,64682.0,0.009185]
[1721310350073,2.67206641,64684.0,64682.0,0.009185]
[1721310350281,2.68606641,64684.0,64682.0,0.009185]
[1721310350936,2.98126141,64684.0,64682.0,0.009185]
[1721310351151,3.13561098,64684.0,64682.0,0.009185]
[1721310351630,3.14961098,64684.0,64682.0,0.009185]
[1721310352054,3.13561098,64684.0,64682.0,0.009185]
[1721310352489,1.93438141,64684.0,64682.0,0.009185]
[1721310352731,1.77178141,64684.0,64683.0,0.38093735]
[1721310353156,0.65063624,64684.0,64683.0,0.38637838]
[1721310353381,1.10042824,64684.0,64683.0,0.38637838]
[1721310353819,0.17013624,64684.0,64683.0,0.38637838]
[1721310354034,0.17013624,64684.0,64683.0,0.45007838]
[1721310354267,0.0017545,64684.0,64683.0,0.45007838]
[1721310354701,0.0157545,64684.0,64683.0,0.45007838]
[1721310355158,0.61992824,64684.0,64683.0,0.45007838]
[1721310355394,0.17013624,64684.0,64683.0,0.45107838]
[1721310355621,0.1297545,64684.0,64683.0,0.45207838]
[1721310356322,0.1237545,64684.0,64683.0,0.45207838]
[1721310356765,0.0237545,64684.0,64683.0,0.45207838]
[1721310357223,0.0237545,64684.0,64683.0,0.45007838]
[1721310357224,0.0017545,64684.0,64683.0,0.45007838]
[1721310357440,0.0017545,64684.0,64683.0,0.91387838]
[1721310357663,0.00084,64700.0,64692.0,0.154577]
[1721310357872,0.00084,64700.0,64699.0,0.07717479]
[1721310358103,0.00084,64700.0,64699.0,0.22466895]
[1721310358534,0.00084,64700.0,64699.0,0.37922995]
[1721310358782,0.00084,64700.0,64699.0,0.68835295]
[1721310359075,0.0438791,64709.0,64702.0,0.309109]
[1721310359307,0.0438791,64709.0,64708.0,0.21847479]
[1721310359940,0.0438791,64709.0,64708.0,0.22393721]
[1721310360382,0.0438791,64709.0,64708.0,0.14676242]
[1721310360642,0.5074931,64709.0,64708.0,0.14676242]
[1721310360889,0.0438791,64709.0,64708.0,0.14676242]
[1721310361099,0.0438791,64709.0,64708.0,0.60492]
[1721310361313,0.0438791,64709.0,64708.0,0.68755721]
[1721310361762,0.0468791,64709.0,64708.0,0.37847721]
[1721310361983,0.003,64709.0,64708.0,0.37847721]
[1721310362416,0.00383,64709.0,64708.0,0.30130242]
[1721310362620,0.00883,64709.0,64708.0,0.14676242]
[1721310363342,0.308968,64732.0,64710.0,0.0806]
[1721310363552,0.4665,64733.0,64720.0,0.07717479]
[1721310363553,0.15717574,64731.0,64720.0,0.07717479]
[1721310363803,0.4665,64733.0,64726.0,0.0806]
[1721310364006,0.4665,64742.0,64729.0,0.232989]
[1721310364226,0.4665,64742.0,64730.0,0.08729051]
[1721310364454,0.154453,64745.0,64732.0,0.0655]
[1721310364714,0.308899,64746.0,64732.0,0.219983]
[1721310364715,0.154454,64744.0,64732.0,0.219983]
[1721310364932,0.154454,64744.0,64727.0,0.38616279]
[1721310364933,0.15438174,64746.0,64733.0,0.1524435]
[1721310365148,0.30883174,64746.0,64733.0,0.3069235]
[1721310365386,0.154452,64745.0,64733.0,0.14935446]
[1721310365605,0.154455,64744.0,64733.0,0.14935446]
[1721310365884,0.15438174,64746.0,64733.0,0.14935446]
[1721310366121,0.154452,64745.0,64733.0,0.14935446]
[1721310366389,0.07717479,64743.0,64733.0,0.14935446]
[1721310366670,0.308934,64739.0,64733.0,0.14935446]
[1721310366858,0.30884074,64742.0,64733.0,0.144]
[1721310367068,0.1,64741.0,64735.0,0.0775]
[1721310367288,0.1,64741.0,64736.0,0.06582952]
[1721310367503,0.021,64745.0,64737.0,0.0775]
[1721310367721,0.175452,64745.0,64738.0,0.00532467]
[1721310367935,0.002,64739.0,64738.0,0.07122467]
[1721310368185,0.002,64739.0,64738.0,0.22666372]
[1721310368394,0.002,64739.0,64738.0,0.15172467]
[1721310369290,0.021,64745.0,64740.0,0.1453]
[1721310369525,0.021,64745.0,64744.0,0.1453]
[1721310369753,0.009,64745.0,64744.0,0.1453]
[1721310369962,0.009,64745.0,64744.0,0.92595166]
[1721310370206,0.009,64745.0,64744.0,0.15059326]
[1721310370909,0.002794,64755.0,64744.0,0.15059326]
[1721310371141,0.002794,64755.0,64744.0,0.00529326]
[1721310371142,0.463356,64745.0,64744.0,0.00529326]
[1721310371369,1.23554574,64745.0,64744.0,0.00529326]
[1721310371579,0.77233,64739.0,64738.0,0.001]
[1721310371868,1.72180874,64739.0,64738.0,0.001]
[1721310372075,1.66757574,64739.0,64738.0,0.001]
[1721310373245,1.66757574,64739.0,64720.0,0.0659]
[1721310373246,0.154509,64721.0,64720.0,0.0659]
[1721310373477,0.309015,64722.0,64720.0,0.0659]
[1721310373695,0.154509,64721.0,64720.0,0.07049327]
[1721310373914,0.154509,64721.0,64720.0,0.0659]
[1721310374127,0.309,64725.0,64720.0,0.0659]
[1721310374345,0.157297,64724.0,64720.0,0.0659]
[1721310374559,0.154503,64724.0,64720.0,0.0659]
[1721310374785,0.4665,64732.0,64720.0,0.14307479]
[1721310375001,0.002794,64731.0,64729.0,0.07717479]
[1721310375233,0.002794,64731.0,64730.0,0.0613]
[1721310375234,0.154485,64731.0,64730.0,0.0613]
[1721310375463,0.463455,64731.0,64730.0,0.0613]
[1721310375697,0.463455,64731.0,64722.0,0.0613]
[1721310375698,0.154506,64723.0,64722.0,0.0613]
[1721310375931,0.15438174,64730.0,64722.0,0.0613]
[1721310376165,0.772522,64723.0,64722.0,0.06588841]
[1721310376390,0.772522,64723.0,64722.0,0.0613]
[1721310376621,0.463519,64722.0,64721.0,0.0786]
[1721310376868,1.02691374,64722.0,64721.0,0.0786]
[1721310377127,0.005,64723.0,64721.0,0.0786]
[1721310377363,0.005,64723.0,64722.0,0.13737479]
[1721310377566,0.4665,64732.0,64722.0,0.1419632]
[1721310377792,0.005,64723.0,64722.0,0.5952822]
[1721310378092,0.014,64739.0,64733.0,0.154479]
[1721310378328,0.014,64739.0,64729.0,0.1414]
[1721310378541,0.154469,64738.0,64729.0,0.1414]
[1721310378752,0.308951,64736.0,64730.0,0.00469184]
[1721310378960,0.154479,64734.0,64730.0,0.00469184]
[1721310379211,0.308947,64737.0,64731.0,0.07717479]
[1721310379212,0.154477,64735.0,64731.0,0.07717479]
[1721310379418,0.308915,64743.0,64731.0,0.23165879]
[1721310379419,0.002794,64733.0,64731.0,0.23165879]
[1721310379630,0.002794,64742.0,64732.0,0.0616]
[1721310379877,0.002794,64745.0,64742.0,0.1397]
[1721310380087,0.47485,64759.0,64743.0,0.00308859]
[1721310380088,0.15438174,64758.0,64743.0,0.00308859]
[1721310380302,0.154429,64755.0,64743.0,0.15912101]
[1721310380973,0.15443,64754.0,64743.0,0.15912101]
[1721310381433,0.15443,64754.0,64743.0,0.00466501]
[1721310381642,0.154439,64751.0,64743.0,0.00466501]
[1721310381881,0.002794,64753.0,64743.0,0.00466501]
[1721310382093,0.15443,64754.0,64743.0,0.00466501]
[1721310382548,0.007,64745.0,64743.0,0.15912101]
[1721310383015,0.006,64751.0,64743.0,0.00566501]
[1721310383226,0.006,64751.0,64743.0,0.00666501]
[1721310383227,0.308882,64750.0,64743.0,0.00666501]
[1721310383463,0.16038174,64751.0,64743.0,0.00666501]
[1721310383464,0.154447,64747.0,64743.0,0.00666501]
[1721310383668,0.154447,64747.0,64743.0,0.001]
[1721310383877,0.154444,64749.0,64743.0,0.001]
[1721310384085,0.006,64751.0,64743.0,0.003]
[1721310384298,0.006,64751.0,64743.0,0.08017479]
[1721310384508,0.160437,64751.0,64744.0,0.00466259]
[1721310384717,0.308881,64750.0,64744.0,0.00466259]
[1721310384930,0.463362,64744.0,64743.0,0.003]
[1721310385146,0.15438174,64750.0,64743.0,0.002]
[1721310385357,0.308887,64749.0,64743.0,0.003]
[1721310385594,0.1,64754.0,64743.0,0.07817479]
[1721310385823,0.002794,64748.0,64743.0,0.001]
[1721310386034,0.006,64750.0,64745.0,0.07717479]
[1721310386470,0.157225,64754.0,64746.0,0.0046506]
[1721310386699,0.008,64749.0,64746.0,0.0046506]
[1721310386929,0.015,64749.0,64743.0,0.002]
[1721310387182,0.015,64749.0,64744.0,0.00465545]
[1721310387386,0.008,64749.0,64744.0,0.00465545]
[1721310387836,0.008,64749.0,64745.0,0.07717479]
[1721310388050,0.002794,64754.0,64745.0,0.07717479]
[1721310388263,0.002794,64754.0,64746.0,0.0046506]
[1721310388481,0.01,64750.0,64746.0,0.0046506]
[1721310388693,0.463341,64747.0,64746.0,0.0046506]
[1721310388919,0.154449,64746.0,64745.0,0.002]
[1721310389148,0.463348,64746.0,64745.0,0.002]
[1721310389358,0.154456,64744.0,64742.0,0.1397]
[1721310389592,0.617826,64743.0,64724.0,0.01855746]
[1721310389813,0.011,64754.0,64746.0,0.001]
[1721310389814,0.463341,64747.0,64746.0,0.001]
[1721310390036,0.463341,64747.0,64734.0,0.0619]
[1721310390037,0.308888,64749.0,64737.0,0.07717479]
[1721310390280,0.002794,64753.0,64737.0,0.07717479]
[1721310390281,0.154434,64753.0,64744.0,0.07717479]
[1721310390501,0.004,64746.0,64745.0,0.1419]
[1721310390757,0.158449,64746.0,64745.0,0.14655303]
[1721310390963,0.004,64746.0,64745.0,0.14655303]
[1721310391389,0.004,64746.0,64725.0,0.2206]
[1721310391390,0.46728074,64746.0,64731.0,0.1459]
[1721310391602,0.154474,64736.0,64731.0,0.1459]
[1721310391817,0.15438174,64745.0,64732.0,0.00468458]
[1721310392091,0.15438174,64745.0,64739.0,0.07717479]
[1721310392092,0.002794,64744.0,64739.0,0.07717479]
[1721310392339,0.15438174,64745.0,64739.0,0.07717479]
[1721310392340,0.154458,64743.0,64739.0,0.07717479]
[1721310392558,0.154459,64742.0,64740.0,0.00466516]
[1721310392809,0.308914,64743.0,64739.0,0.07717479]
[1721310393017,0.154457,64743.0,64739.0,0.07717479]
[1721310393241,0.308853,64756.0,64731.0,0.1609]
[1721310393449,0.308853,64756.0,64732.0,0.12829078]
[1721310393450,0.308923,64742.0,64732.0,0.12829078]
[1721310393665,0.15717574,64751.0,64732.0,0.12829078]
[1721310393666,0.154463,64741.0,64738.0,0.07717479]
[1721310393880,0.15438174,64751.0,64738.0,0.07717479]
[1721310393881,0.154465,64740.0,64738.0,0.07717479]
[1721310394139,0.77232,64740.0,64739.0,0.00466759]
[1721310394383,0.77232,64740.0,64731.0,0.1529]
[1721310394384,0.154483,64732.0,64731.0,0.1529]
[1721310394604,0.15438174,64740.0,64732.0,0.09246479]
[1721310394821,0.001,64743.0,64739.0,0.07717479]
[1721310394822,0.308914,64743.0,64739.0,0.07717479]
[1721310395036,0.154465,64740.0,64733.0,0.00435708]
[1721310395294,0.15726,64739.0,64732.0,0.07717479]
[1721310395506,0.002794,64749.0,64734.0,0.00308907]
[1721310395723,0.002794,64749.0,64735.0,0.27319394]
[1721310395936,0.004,64740.0,64738.0,0.154468]
[1721310396198,0.004,64740.0,64736.0,0.52004122]
[1721310396199,0.004,64740.0,64739.0,0.28275994]
[1721310396406,0.002794,64749.0,64743.0,0.308911]
[1721310396635,0.014,64752.0,64744.0,0.28274794]
[1721310396859,0.1,64754.0,64746.0,0.07717479]
[1721310397075,0.004,64749.0,64746.0,0.07717479]
[1721310397288,0.004,64749.0,64747.0,0.12826329]
[1721310397520,0.004,64749.0,64740.0,0.1406]
[1721310397758,0.154454,64744.0,64740.0,0.14930565]
[1721310397971,0.15446,64742.0,64740.0,0.14930565]
[1721310398190,0.154452,64745.0,64740.0,0.14930565]
[1721310398407,0.003,64752.0,64741.0,0.20854336]
[1721310398408,0.154444,64749.0,64741.0,0.20854336]
[1721310398621,0.154445,64748.0,64741.0,0.07717479]
[1721310398831,0.154447,64747.0,64741.0,0.07717479]
[1721310399056,0.154443,64749.0,64741.0,0.07717479]
[1721310399280,0.154439,64751.0,64742.0,0.13136474]
[1721310399497,0.154433,64753.0,64748.0,0.07717479]
[1721310399929,0.154437,64751.0,64741.0,0.07717479]
[1721310400136,0.004,64749.0,64742.0,0.12826892]
[1721310400358,0.004,64749.0,64741.0,0.07717479]
[1721310400359,0.01,64749.0,64743.0,0.12826892]
[1721310400567,0.01,64749.0,64744.0,0.12826892]
[1721310400783,0.006,64749.0,64741.0,0.07817479]
[1721310401036,0.006,64749.0,64742.0,0.12827446]
[1721310401037,0.154443,64749.0,64742.0,0.12827446]
[1721310401250,0.005,64751.0,64748.0,0.001]
[1721310401711,0.154442,64749.0,64748.0,0.001]
[1721310401942,0.154442,64749.0,64740.0,0.21777479]
[1721310401943,0.308885,64749.0,64740.0,0.21777479]
[1721310402191,0.463329,64749.0,64741.0,0.12827565]
[1721310402398,0.154445,64748.0,64742.0,0.12827565]
[1721310402615,0.308876,64751.0,64743.0,0.12827565]
[1721310402832,0.004,64749.0,64743.0,0.00433281]
[1721310403067,0.004,64749.0,64744.0,0.12826918]
[1721310403285,0.154436,64752.0,64747.0,0.07717479]
[1721310403767,0.006,64749.0,64741.0,0.001]
[1721310404190,0.308885,64749.0,64742.0,0.00433523]
[1721310404396,0.308885,64749.0,64743.0,0.12827076]
[1721310404610,0.154449,64747.0,64742.0,0.00433523]
[1721310404845,0.154449,64747.0,64744.0,0.00432499]
[1721310405069,0.154449,64747.0,64743.0,0.00432742]
[1721310405294,0.154449,64747.0,64741.0,0.07717479]
[1721310405552,0.003,64749.0,64742.0,0.12827272]
[1721310405553,0.154444,64749.0,64742.0,0.12827272]
[1721310405764,0.154444,64749.0,64743.0,0.12827223]
[1721310405985,0.161444,64749.0,64744.0,0.12827223]
[1721310406183,0.161444,64749.0,64744.0,0.00432499]
[1721310406184,0.154448,64747.0,64744.0,0.00432499]
[1721310406625,0.154448,64747.0,64745.0,0.12827198]
[1721310406828,0.154448,64747.0,64742.0,0.001]
[1721310407033,0.154448,64747.0,64743.0,0.12827198]
[1721310407277,0.308908,64744.0,64743.0,0.00432742]
[1721310407498,0.463362,64744.0,64743.0,0.00432742]
[1721310407719,0.154456,64743.0,64742.0,0.001]
[1721310407933,0.308908,64744.0,64742.0,0.001]
[1721310407934,0.154455,64744.0,64742.0,0.001]
[1721310408827,0.154456,64743.0,64742.0,0.001]
[1721310409038,0.003,64747.0,64730.0,0.1447]
[1721310409254,0.154483,64732.0,64731.0,0.1282898]
[1721310409514,0.154485,64731.0,64730.0,0.1447]
[1721310410425,0.154485,64731.0,64721.0,0.07717479]
[1721310410426,0.154485,64731.0,64724.0,0.0601]
[1721310410641,0.002794,64730.0,64725.0,0.12830557]
[1721310410853,0.154485,64731.0,64724.0,0.0601]
[1721310410854,0.154487,64731.0,64724.0,0.0601]
[1721310411301,0.154486,64731.0,64728.0,0.07717479]
[1721310412381,0.154473,64736.0,64728.0,0.07717479]
[1721310412612,0.154473,64736.0,64729.0,0.00308937]
[1721310412847,0.001,64731.0,64730.0,0.003]
[1721310413358,0.002794,64735.0,64730.0,0.00308934]
[1721310413820,0.102794,64742.0,64732.0,0.154482]
[1721310414059,0.1,64742.0,64736.0,0.07717479]
[1721310414271,0.1,64742.0,64737.0,0.003089]
[1721310414481,0.025,64745.0,64737.0,0.003089]
[1721310414695,0.025,64745.0,64736.0,0.23473671]
[1721310415127,0.025,64745.0,64744.0,0.07717479]
[1721310415549,0.025,64745.0,64744.0,0.29492879]
[1721310415766,0.025,64745.0,64744.0,0.14047479]
[1721310415951,0.025,64745.0,64744.0,0.0633]
[1721310416497,0.025,64745.0,64744.0,0.217754]
[1721310416952,0.025,64745.0,64744.0,0.219754]
[1721310417412,0.025,64745.0,64744.0,0.217754]
[1721310417609,0.025,64745.0,64744.0,0.222754]
[1721310417839,0.025,64745.0,64744.0,0.0683]
[1721310419215,0.025,64745.0,64740.0,0.1383]
[1721310419432,0.002794,64744.0,64740.0,0.1383]
[1721310419660,0.025,64745.0,64741.0,0.0043324]
[1721310420096,0.025,64745.0,64740.0,0.1383]
[1721310420319,0.031,64745.0,64741.0,0.0043324]
[1721310420535,0.031,64745.0,64740.0,0.1383]
[1721310420753,0.025,64745.0,64741.0,0.0043324]
[1721310421015,0.154465,64740.0,64736.0,0.061]
[1721310421251,0.025,64745.0,64742.0,0.00432997]
[1721310421463,0.025,64745.0,64742.0,0.0030888]
[1721310421682,0.025,64745.0,64743.0,0.00432755]
[1721310421905,0.025,64745.0,64744.0,0.0832]
[1721310422120,0.025,64745.0,64744.0,0.14852512]
[1721310422331,0.029,64745.0,64744.0,0.14852512]
[1721310422829,0.025,64745.0,64744.0,0.14852512]
[1721310424004,0.02459639,64745.0,64744.0,0.15052512]
[1721310424249,0.02459639,64745.0,64744.0,0.92279512]
[1721310424886,0.02859639,64745.0,64744.0,0.92279512]
[1721310425584,0.02459639,64745.0,64744.0,0.92279512]
[1721310426451,0.02459639,64745.0,64744.0,0.92179512]
[1721310426681,0.02459639,64745.0,64744.0,1.43508486]
[1721310426940,0.00589511,64745.0,64744.0,1.44008486]
[1721310427149,0.00589511,64745.0,64744.0,1.87724393]
[1721310427364,0.00589511,64745.0,64744.0,1.56833593]
[1721310428077,0.00589511,64745.0,64744.0,1.44008486]
[1721310428295,0.00589511,64745.0,64744.0,1.5633235]
[1721310428514,0.00589511,64745.0,64744.0,1.8722315]
[1721310428734,0.00589511,64745.0,64744.0,1.87222702]
[1721310428966,0.00589511,64745.0,64744.0,1.5598908]
[1721310429179,0.00589511,64745.0,64744.0,1.51331902]
[1721310429426,0.00589511,64745.0,64744.0,1.56331902]
[1721310429847,0.00589511,64745.0,64744.0,1.56831902]
[1721310430062,0.00589511,64745.0,64744.0,1.56731902]
[1721310430294,0.00589511,64745.0,64744.0,1.56231902]
[1721310430771,0.00589511,64745.0,64744.0,1.57631902]
[1721310430772,0.00689511,64745.0,64744.0,1.57631902]
[1721310431263,0.00772511,64745.0,64744.0,1.58132372]
[1721310431493,0.00672511,64745.0,64744.0,1.56732372]
[1721310431738,0.00672511,64745.0,64744.0,1.58132372]
[1721310432190,0.00672511,64745.0,64744.0,1.53132372]
[1721310432433,0.00672511,64745.0,64744.0,1.75732372]
[1721310432924,0.00672511,64745.0,64744.0,0.34352512]
[1721310433145,0.00672511,64745.0,64744.0,0.02332512]
[1721310433609,0.00772511,64745.0,64744.0,0.02332512]
[1721310434067,0.00772511,64745.0,64744.0,0.03732512]
[1721310434524,0.00772511,64745.0,64744.0,0.033]
[1721310434731,0.00772511,64745.0,64744.0,0.03730531]
[1721310434949,0.00872511,64745.0,64744.0,0.02330531]
[1721310435169,0.00872511,64745.0,64744.0,0.02639396]
[1721310435478,0.00972511,64745.0,64744.0,1.4738537]
[1721310435670,0.00772511,64745.0,64744.0,1.77900052]
[1721310435883,0.00772511,64745.0,64744.0,2.08790852]
[1721310436797,0.00772511,64745.0,64744.0,1.70600052]
[1721310437223,0.00772511,64745.0,64744.0,1.70600255]
[1721310437473,0.00672511,64745.0,64744.0,0.92447531]
[1721310437682,0.00672511,64745.0,64744.0,0.61556731]
[1721310437902,0.00672511,64745.0,64744.0,0.62956731]
[1721310438163,0.00672511,64745.0,64744.0,0.93947531]
[1721310438400,0.00672511,64745.0,64744.0,0.92547531]
[1721310438824,0.00672511,64745.0,64744.0,0.93247531]
[1721310439032,0.00672511,64745.0,64744.0,0.93847531]
[1721310439474,0.00672511,64745.0,64744.0,0.93747531]
[1721310439693,0.00672511,64745.0,64744.0,1.09185705]
[1721310439898,0.00672511,64745.0,64744.0,0.93747531]
[1721310440117,0.00672511,64745.0,64744.0,0.94647531]
[1721310440764,0.00672511,64745.0,64744.0,0.94047531]
[1721310440980,0.00672511,64745.0,64744.0,0.94747531]
[1721310441425,0.00672511,64745.0,64744.0,0.63856731]
[1721310441938,0.00672511,64745.0,64744.0,0.02730531]
[1721310442426,0.47008111,64745.0,64744.0,0.02730531]
[1721310442659,1.30507085,64745.0,64744.0,0.02230531]
[1721310442888,1.40507085,64745.0,64744.0,0.022]
[1721310443106,1.42518697,64745.0,64744.0,0.006]
[1721310443353,1.48487085,64745.0,64744.0,0.006]
[1721310443601,1.48487085,64745.0,64744.0,0.015]
[1721310443602,1.86105912,64745.0,64744.0,0.015]
[1721310444068,1.86105912,64745.0,64744.0,0.006]
[1721310444570,1.52915512,64745.0,64744.0,0.006]
[1721310444787,1.59994593,64745.0,64744.0,0.007]
[1721310445001,1.50698683,64745.0,64744.0,0.001]
[1721310445179,1.50698683,64745.0,64740.0,0.000913]
[1721310445180,0.463384,64741.0,64740.0,0.000913]
[1721310445426,0.71776574,64741.0,64740.0,0.000913]
[1721310445638,1.02668874,64741.0,64740.0,0.000913]
[1721310445863,1.39721174,64741.0,64740.0,0.000913]
[1721310446095,1.42021174,64741.0,64740.0,0.000913]
[1721310446367,1.42138233,64741.0,64740.0,0.000913]
[1721310446565,1.39721174,64741.0,64740.0,0.000913]
[1721310446783,1.11245942,64741.0,64740.0,0.000913]
[1721310447015,0.316061,64741.0,64740.0,0.000913]
[1721310447222,0.624984,64741.0,64740.0,0.000913]
[1721310447689,0.933907,64741.0,64740.0,0.000913]
[1721310447939,0.95807806,64741.0,64740.0,0.000913]
[1721310448113,0.933907,64741.0,64740.0,0.001913]
[1721310448578,1.39721174,64741.0,64740.0,0.000913]
[1721310449003,1.39721174,64741.0,64740.0,0.001913]
[1721310449416,1.39921174,64741.0,64740.0,0.001913]
[1721310449633,1.09028874,64741.0,64740.0,0.001913]
[1721310449843,1.09028874,64741.0,64740.0,0.002913]
[1721310450061,1.421383,64741.0,64740.0,0.001913]
[1721310450287,1.51314035,64741.0,64740.0,0.001913]
[1721310450515,1.46664089,64741.0,64740.0,0.001913]
[1721310451422,1.55827796,64741.0,64740.0,0.001913]
[1721310451671,1.55827187,64741.0,64740.0,0.001913]
[1721310451882,1.46664089,64741.0,64740.0,0.001913]
[1721310452088,1.46664089,64741.0,64740.0,0.000913]
[1721310452304,1.51310792,64741.0,64740.0,0.001913]
[1721310452523,1.51510792,64741.0,64740.0,0.002913]
[1721310452775,1.53730595,64741.0,64740.0,0.002913]
[1721310452981,1.53730595,64741.0,64740.0,0.001913]
[1721310452982,1.1831725,64741.0,64740.0,0.001913]
[1721310453232,0.002,64741.0,64740.0,0.002913]
[1721310453685,0.002,64741.0,64740.0,0.47066246]
[1721310453931,0.002,64741.0,64740.0,0.547905]
[1721310454137,0.002,64741.0,64740.0,0.5532621]
[1721310454138,0.004,64741.0,64740.0,0.5532621]
[1721310455026,0.004,64741.0,64740.0,0.0072701]
[1721310455691,0.158461,64741.0,64740.0,0.0072701]
[1721310455915,0.004,64741.0,64740.0,0.003913]
[1721310456649,0.99248274,64741.0,64740.0,0.000913]
[1721310456878,0.98968874,64741.0,64740.0,0.000913]
[1721310457096,0.99168874,64741.0,64740.0,0.000913]
[1721310457519,0.68076574,64741.0,64740.0,0.000913]
[1721310457941,0.68276574,64741.0,64740.0,0.000913]
[1721310458165,1.30061174,64741.0,64740.0,0.000913]
[1721310458383,1.40061174,64741.0,64740.0,0.000913]
[1721310458833,1.51711399,64741.0,64740.0,0.000913]
[1721310459256,1.46933135,64741.0,64740.0,0.000913]
[1721310459490,1.40061174,64741.0,64740.0,0.000913]
[1721310459724,1.54294305,64741.0,64740.0,0.001913]
[1721310459937,1.64512194,64741.0,64740.0,0.001913]
[1721310460146,1.8624188,64741.0,64740.0,0.000913]
[1721310460600,1.8624188,64741.0,64740.0,0.001913]
[1721310460820,1.8604188,64741.0,64740.0,0.001913]
[1721310461310,2.00698396,64741.0,64740.0,0.002913]
[1721310461770,1.9154188,64741.0,64740.0,0.002913]
[1721310462007,1.9154188,64741.0,64704.0,0.0631]
[1721310462008,0.309056,64714.0,64704.0,0.0631]
[1721310462211,0.154531,64712.0,64704.0,0.0631]
[1721310462451,0.0773,64719.0,64706.0,0.0044477]
[1721310462452,0.154528,64713.0,64706.0,0.0044477]
[1721310462687,0.154528,64713.0,64705.0,0.00445013]
[1721310462917,0.15454,64708.0,64707.0,0.00444527]
[1721310463150,0.309072,64710.0,64706.0,0.0044477]
[1721310463369,0.1436,64719.0,64705.0,0.07717479]
[1721310463618,0.154527,64714.0,64706.0,0.00445867]
[1721310463837,0.309022,64721.0,64712.0,0.07717479]
[1721310464072,0.309022,64721.0,64712.0,0.14057479]
[1721310464073,0.003,64713.0,64712.0,0.14057479]
[1721310464300,0.003,64713.0,64712.0,0.0634]
[1721310464513,0.003,64713.0,64712.0,0.06784409]
[1721310464731,0.157528,64713.0,64712.0,0.00444409]
[1721310464953,0.003,64713.0,64712.0,0.00444409]
[1721310465167,0.003,64713.0,64705.0,0.07717479]
[1721310465415,0.003,64713.0,64706.0,0.00445867]
[1721310466099,0.154527,64714.0,64706.0,0.00445867]
[1721310466325,0.309039,64717.0,64706.0,0.00445867]
[1721310466326,0.20073834,64713.0,64706.0,0.00445867]
[1721310466547,0.154542,64707.0,64706.0,0.00445867]